Cogmind - Beta 14 @@@ ROGUE MODE // 2024.12.28 @ 12:14:32 Player: Byrnorthil Result: Destroyed by YI-UF0 with YI-UF0's Doublenader Performance ------------- Evolutions (0) 0 Regions Visited (2) 400 Robots Destroyed (22) 110 Value Destroyed (357) 357 Prototype IDs (4) 80 Alien Tech Used (0) 0 Bonus (0) 0 TOTAL SCORE: 947 Bonus ------- None Cogmind --------- Core Integrity 0/250 Matter 265/300 Energy 41/250 System Corruption 0% Temperature Cool (0) Movement Treading (480) Ox4 Location -10/Mines Parts ------- > --- POWER (1) -------- Ion Engine > --- PROPULSION (2) --- Light Treads Aluminum Leg > --- UTILITY (2) ------ Huge Storage Unit Targeting Computer > --- WEAPON (2) ------- EM Pulse Gun EM Pulse Gun > --- INVENTORY (25) --- Ion Engine Light Ion Engine Aluminum Leg Wheel Compact Wheel Heat Sink Small Storage Unit Large Storage Unit Medium Matter Pod (100) High-capacity Matter Pod (91) Visual Processing Unit Signal Interpreter Tractor Beam EM Pulse Gun Assault Rifle Light Assault Rifle Light Assault Rifle Light Assault Rifle Datajack Hammer Peak State ------------ > --- POWER ------------ Ion Engine > --- PROPULSION ------- Light Treads Light Treads > --- UTILITY ---------- Huge Storage Unit Improved Terrain Scanner > --- WEAPON ----------- EM Pulse Gun EM Pulse Gun > --- INVENTORY -------- Ion Engine Light Treads Aluminum Leg Aluminum Leg Wheel Compact Wheel Small Storage Unit Large Storage Unit Medium Matter Pod Visual Processing Unit Signal Interpreter Tractor Beam EM Pulse Gun EM Pulse Gun EM Pulse Gun EM Pulse Gun Assault Rifle Light Assault Rifle Datajack [Rating: 11] Favorites ----------- Power Ion Engine Engine Ion Engine Propulsion Light Treads Treads Light Treads Leg Aluminum Leg Utility Huge Storage Unit Device Improved Terrain Scanner Storage Huge Storage Unit Processor Targeting Computer Weapon EM Pulse Gun Energy Gun EM Pulse Gun Ballistic Gun Light Assault Rifle Build | -11 -10 -10 ------- Run | Yrd Mat Min Slots Evolved . | . . . Power . | . . . Propulsion . | . . . Utility . | . . . Weapon . | . . . Parts Attached 23 | 7 10 6 Power 3 | 1 . 2 Engine 3 | 1 . 2 Core . | . . . Reactor . | . . . Propulsion 6 | 2 2 2 Treads 3 | . 2 1 Leg 3 | 2 . 1 Wheel . | . . . Hover . | . . . Flight . | . . . Utility 6 | 2 4 . Device 1 | 1 . . Storage 4 | 1 3 . Processor 1 | . 1 . Hackware . | . . . Protection . | . . . Artifact . | . . . Weapon 8 | 2 4 2 Energy Gun 6 | . 4 2 Energy Cannon . | . . . Ballistic Gun 2 | 2 . . Ballistic Cannon . | . . . Launcher . | . . . Special Weapon . | . . . Impact Weapon . | . . . Slashing Weapon . | . . . Piercing Weapon . | . . . Special Melee Weapon . | . . . Unidentified Prototypes . | . . . Parts Lost 6 | . 1 5 Power 1 | . . 1 Propulsion 2 | . . 2 Utility . | . . . Weapon 3 | . 1 2 Highest Loss Streak 5 | . 1 5 To Critical Strikes . | . . . Average Slot Usage (%) 99 | . 99 100 Engine 14 | . 14 14 Treads 27 | . 27 28 Device 9 | . 10 . Storage 14 | . 14 14 Processor 4 | . 3 14 Energy Gun 14 | . 12 28 Ballistic Gun 13 | . 15 . Peak Build Rating 11 | 9 11 9 Average Rating 9 | 5 9 8 On Entrance 6 | . 9 9 Naked Turns . | . . . Heaviest Build 90 | 14 90 89 Greatest Support 40 | 20 40 40 Greatest Overweight (x) 2 | . 2 2 Average Overweight (x) 1 | . 1 2 Largest Inventory Capacity 25 | 8 25 25 Average Capacity 22 | 7 22 25 Most Carried 25 | 6 24 25 Average Carried 16 | 4 15 24 Final Capacity 25 | 8 25 25 Final Carried 24 | 6 24 20 Class Distribution -------------------- 100% | Mutant Dominant Class ---------------- Mutant | -10/Materials Mutant | -10/Mines Resources | -11 -10 -10 ----------- Run | Yrd Mat Min Matter Collected 694 | 197 307 190 Remotely . | . . . Salvage Created 583 | 18 565 . Parts 50 | 3 45 2 Haulers Intercepted 2 | . 2 . Recyclers Shooed . | . . . Parts Field Recycled . | . . . Retrieved Matter . | . . . Parts Self-Destructed . | . . . Prevented . | . . . Kills | -11 -10 -10 ------- Run | Yrd Mat Min Combat Hostiles Destroyed 12 | . 12 . Guns 9 | . 9 . AOE 3 | . 3 . Classes Destroyed 7 | 1 6 . Worker 2 | . 1 1 Tunneler 1 | 1 . . Hauler 2 | . 2 . Operator 2 | . 2 . Watcher 3 | . 3 . Swarmer 6 | . 6 . Grunt 6 | . 6 . Best Kill Streak 4 | 1 4 1 Combat Bots Only 3 | . 3 . Max Kills in Single Turn 2 | 1 2 1 Gunslinging . | . . . Exploded 2 | . 2 . Melee . | . . . Uniques/NPCs Destroyed . | . . . Combat | -11 -10 -10 -------- Run | Yrd Mat Min Hostile Shots Fired 74 | . 44 30 Missed 22 | . 12 10 Damage Taken 998 | . 308 690 Core 262 | . 50 212 Absorbed by Shields . | . . . Regen/Repaired (Parts) 67 | . 67 . Core Remaining (%) 100 | 100 . . Volleys Fired 64 | 6 52 6 Largest 2 | 2 2 2 Hottest 80 | 40 80 80 Shots Fired 127 | 12 103 12 Gun 127 | 12 103 12 Cannon . | . . . Launcher . | . . . Special . | . . . Kinetic 78 | 12 66 . Thermal . | . . . Explosive . | . . . Electromagnetic 49 | . 37 12 Robot Hit Streak 7 | 1 7 6 Robot Miss Streak 8 | 8 6 2 Penetration Max . | . . . Secondary Targets . | . . . Shots Hit Robots 73 | 3 61 9 Core Hits 35 | 2 30 3 Critical Kills . | . . . Critical Parts Destroyed . | . . . Critical Strikes 1 | . 1 . Corrupt 1 | . 1 . Melee Attacks . | . . . Impact . | . . . Slashing . | . . . Piercing . | . . . Sneak Attacks . | . . . Combat Hostiles . | . . . Follow-up Attacks . | . . . Damage Inflicted 971 | 40 831 100 Guns 827 | 27 700 100 Cannons . | . . . Explosions 128 | . 128 . Melee . | . . . Ramming 16 | 13 3 . Kinetic 467 | 27 440 . Thermal 128 | . 128 . Explosive . | . . . Electromagnetic 360 | . 260 100 Impact . | . . . Slashing . | . . . Piercing . | . . . Highest Corruption . | . . . Average Corruption . | . . . Corruption Purged . | . . . Corruption Blocked . | . . . Overload Shots . | . . . Overflow Damage . | . . . Projectiles . | . . . Explosions . | . . . Melee . | . . . Knockbacks . | . . . Impact . | . . . Kinetic . | . . . Secondary . | . . . Self-Inflicted Damage 26 | . 26 . Shots 1 | . 1 . Rammed 2 | . 2 . Targets Rammed 6 | 3 2 1 Kicked 3 | 3 . . Crushed 1 | . . 1 Highest Temperature 108 | . 108 54 Average Temperature 39 | . 43 24 Received Heat Transfer 54 | . 54 . Siege Activations . | . . . Robots Corrupted . | . . . Combat Hostiles . | . . . Parts Fried . | . . . Impact Corruptions . | . . . Robots Melted . | . . . Combat Hostiles . | . . . Parts Melted . | . . . Heat Transferred 150 | . 150 . Parts Sabotaged . | . . . Parts Stolen . | . . . Parts Stripped . | . . . Power Chain Reactions 3 | . 3 . Alert | -11 -10 -10 ------- Run | Yrd Mat Min Peak Influence 223 | 5 223 73 Initial 68 | . 3 68 Average 69 | 1 74 69 Maximum Alert Level 1 | . 1 . Low Security (%) 97 | 100 96 100 Level 1 2 | . 3 . Level 2 . | . . . Level 3 . | . . . Level 4 . | . . . Level 5 . | . . . High Security . | . . . Max Security . | . . . Squads Dispatched 4 | . 4 . Investigation 2 | . 2 . Extermination . | . . . Reinforcement 2 | . 2 . Assault . | . . . Garrison . | . . . Intercept . | . . . Searches Triggered . | . . . Construction Impeded . | . . . Haulers Reinforced . | . . . Active Scanning Responses . | . . . Cargo Convoy Interrupts . | . . . Stealth | -11 -10 -10 --------- Run | Yrd Mat Min Distress Signals 1 | . 1 . Communications Jammed . | . . . Distress Signals . | . . . Times Spotted 24 | . 20 4 Peak Tracking Total 3 | . 3 1 Tactical Retreats 1 | . . 1 Traps | -11 -10 -10 ------- Run | Yrd Mat Min Traps Triggered . | . . . Indirectly . | . . . Trap Hack Attempts . | . . . Triggered . | . . . Disarmed . | . . . Reprogrammed . | . . . Reused . | . . . Traps Extracted . | . . . Installed . | . . . Triggered . | . . . Machines | -11 -10 -10 ---------- Run | Yrd Mat Min Machines Disabled . | . . . Max in Single Turn . | . . . Machines Repaired . | . . . Machines Dismantled . | . . . Machines Sabotaged . | . . . Overloaded Fab Kills . | . . . Hacking | -11 -10 -10 --------- Run | Yrd Mat Min Machines Accessed 7 | . 7 . Terminals 5 | . 5 . Fabricators . | . . . Repair Stations 1 | . 1 . Recycling Units 1 | . 1 . Scanalyzers . | . . . Garrison Access . | . . . Total Hacks 32 | . 32 . Successful 19 | . 19 . Failed 13 | . 13 . Catastrophic . | . . . Database Lockouts . | . . . Manual 17 | . 17 . Terminals 25 | . 25 . Fabricators . | . . . Repair Stations 6 | . 6 . Recycling Units 1 | . 1 . Scanalyzers . | . . . Garrison Access . | . . . Terminal Hacks 9 | . 9 . Robot Analysis 6 | . 6 . Prototype ID Bank 2 | . 2 . Locate Traps 1 | . 1 . Fabricator Hacks . | . . . Repair Station Hacks 4 | . 4 . Scan Component 2 | . 2 . Repair 2 | . 2 . Recycling Unit Hacks 1 | . 1 . Report Inventory 1 | . 1 . Scanalyzer . | . . . Garrison Access Hacks . | . . . Unauthorized Hacks 5 | . 5 . Terminals 5 | . 5 . Track 2 | . 2 . Botnet 2 | . 2 . Operators 1 | . 1 . Fabricators . | . . . Repair Stations . | . . . Recycling Units . | . . . Scanalyzers . | . . . Garrison Access . | . . . Data Cores Recovered . | . . . Used . | . . . Hacking Detections 6 | . 6 . Full Trace Events 4 | . 4 . Feedback Events . | . . . Feedback Blocked . | . . . Robot Schematics Acquired . | . . . Robots Built . | . . . Authchips . | . . . Time . | . . . Total Robot Build Rating . | . . . Part Schematics Acquired . | . . . Parts Built . | . . . Authchips . | . . . Time . | . . . Total Part Build Rating . | . . . Parts Repaired 2 | . 2 . Time 62 | . 62 . Parts Recycled . | . . . Recycled Matter . | . . . Retrieved Matter . | . . . Retrieved Components . | . . . Parts Scanalyzed . | . . . Part Schematics Acquired . | . . . Parts Damaged . | . . . Bothacking | -11 -10 -10 ------------ Run | Yrd Mat Min Used RIF Installer . | . . . Robots Hacked . | . . . Non-combat . | . . . Combat . | . . . Robot Hacks Applied . | . . . Relay Couplers Released . | . . . Fabnet Peak Effective % . | . . . Robots Rewired . | . . . Allies Hacked . | . . . Hacks Repelled . | . . . Allies | -11 -10 -10 -------- Run | Yrd Mat Min Total Allies . | . . . Largest Group . | . . . Highest-Rated Group . | . . . Highest-Rated Ally . | . . . Total Orders . | . . . Ally Attacks . | . . . Total Damage . | . . . Kills . | . . . Allies Corrupted . | . . . Allies Melted . | . . . Intel | -11 -10 -10 ------- Run | Yrd Mat Min Robot Analysis Total 6 | . 6 . Derelict Logs Recovered 2 | . . 2 Drone Launches . | . . . Drone Recoveries . | . . . Exploration | -11 -10 -10 ------------- Run | Yrd Mat Min Turns Passed 1925 | 116 1559 250 Spaces Moved 617 | 67 481 69 Core 2 | 2 . . Treads 523 | . 454 69 Legs 92 | 65 27 . Wheels . | . . . Hover . | . . . Flight . | . . . Fastest Speed 50 | 50 120 320 Average Speed 259 | 117 270 320 Slowest Speed 320 | 120 320 320 Overloaded Moves . | . . . Propulsion Burnouts . | . . . Robots Hopped . | . . . Cave-ins Triggered . | . . . Exploration Rate (%) 43 | 5 86 39 Regions Visited 2 Branch Regions 1 Pre-discovered Areas 1 | . . 1 Known Exits Taken . | . . . Unknown Exits Taken 2 | 1 1 . Scrap Searched 2 | . . 2 Spaces Dug . | . . . Terrain Destroyed 8 | . 8 . Melee . | . . . Projectile . | . . . AOE 8 | . 8 . Terrain Rammed . | . . . Walls Destroyed . | . . . Machines Disabled . | . . . Actions | -11 -10 -10 --------- Run | Yrd Mat Min Total 809 | 89 637 83 Wait 76 | 1 74 1 Move 615 | 66 480 69 Hop . | . . . Pick Up 25 | 6 19 . Fast Attach 8 | 7 1 . Attach 6 | . 1 5 Detach . | . . . Swap 9 | . 8 1 Drop . | . . . Fire 64 | 6 52 6 Melee . | . . . Ram . | . . . Kick 3 | 3 . . Crush 3 | . 2 1 Escape Stasis . | . . . Rewire . | . . . Trap . | . . . Miscellaneous . | . . . Route ------- -11/Scrapyard -10/Materials (discovered 3 exits: *Mat / [*Min x2]) -10/Mines (discovered 2 exits: *Mat x2) History --------- Turn | Location | Event 2 | -11/Scrapyard | Met Revision 17 7 | -11/Scrapyard | Discovered new exit (range 16) 117 | -11/Scrapyard | Entered Materials 193 | -10/Materials | Discovered new exit (range 13) 307 | -10/Materials | Build established: Mutant 613 | -10/Materials | Discovered new exit (range 10) 1381 | -10/Materials | Repaired EM Pulse Gun 1418 | -10/Materials | Repaired Corrupted Lgt. Assault Rifle 1593 | -10/Materials | Discovered new exit (range 6) 1676 | -10/Materials | Entered Mines 1747 | -10/Mines | Discovered new exit (range 10) 1870 | -10/Mines | Identified exit to Materials 1913 | -10/Mines | Core integrity fell below 50% 1925 | -10/Mines | Core integrity fell below 20% 1926 | -10/Mines | Destroyed by YI-UF0 with YI-UF0's Doublenader Last Messages --------------- 01785_ Found Ion Engine. 01785_ Found Lgt. Cannon. 01785_ Found 51 Matter. 01786_ Acquired 51 matter. 01840_ K-01 Serf collects debris. 01870_ Acquired derelict log, extracted data. Loading 1 Mines exit... 01901_ A derelict is hurriedly installing traps. 01902_ Ion Engine destroyed. 01903_ 1S-BOA(g): "Hehe, this'll put a wrench in their mining defense operations..." 01903_ 1S-BOA(g) slips into the shadows. 01906_ EM Pulse Gun destroyed. 01912_ Lgt. Treads destroyed. 01919_ The unstable cave ceiling collapses. 01922_ Lgt. Treads destroyed. 01922_ K-01 Serf destroyed. 01924_ EM Pulse Gun destroyed. 01925_ YI-UF0 mumbles something. 01925_ The unstable cave ceiling collapses. Map ----- +----------------------------------------------------+ | ???????????????????????????????????????? | | ???????????????????????????????????????? | | ???????????????????????????????????????? | | ???????????????????????????????????????? | | ???????????????????????????????????????? | | ???????????????????????????????????????? | | ???????????????????????????????????????? | | ???????????????????????????????????????? | | ???????????????????????????????????????? | | ???????????????????????????????????????? | | ???????????????????????????????????????? | | ???????????????????????????????????????? | | ????????????????????????????????? ?????? | | ???????????????????????????????? ?????? | | ???????????????????????????????? #?????? | | ??????????????????????????????? #?????? | | ??????????????????????????????? ####??? | | ??????????????????????????????^ #??? | | ?????????????????????????????? # ^#??? | | ?????????????????##??####???? #??? | | ?????????????????? ## #### #??? | | ??????????????????? #??? | | ???????????????# ???# #??? | | ?????????????### ??# #??? | | ??????????? ## #??? | | ??????????????????#g @ #??? | | ??????????????????# #??? | | ??????????????##### #??? | | ??????????????# # # #??? | | ??????????????# ### ## ##??? | | ??????????????????# ##### # ##???? | | ??????????????????# #???### ####?#????? | | ??????????????????# ####### #?????????? | | ??????????????????# ####??????? | | ??????????????????# ######### ##?????? | | ??????????? ??????# ###??## #?????? | | ????????# ### #### #?????? | | ????????# #?????? | | ????????# ##????? | | ???????? #????? | | ???????? #????? | | ????????? ## #????? | | ???????? #### #????? | | ????????? ???## #????? | | ????????? ????# #????? | | ??????????# ## ????## # ##????? | | ??????????###?## ?????## ####?????? | | ???????????????# ??????# #????????? | | ################# ??????# #????????? | | #?# ##??????# #????????? | +----------------------------------------------------+ Best States ------------- Heat Dissipation 25 Energy Generation 10 Energy Capacity 250 Matter Stores 300 Matter Capacity 300 Sight Range 16 Terrain Scan Range 16 Terrain Scan Density 10 Evasion (%) 55 Targeting Accuracy 5 Recoil Reduction 2 Item Schematics ----------------- None Robot Schematics ------------------ None Fabricated ------------ Nothing Alien Tech Used ----------------- None Achievements -------------- None Challenges ------------ None Game ------ Seed BehemothCooledDetonator Manual? 0 Play Time 00:15:39 Cumulative 123.4 hours Start 2024.12.28 @ 12:00:32 End 2024.12.28 @ 12:14:32 Sessions 1 Manual Loads 0 Difficulty Rogue Special Mode None Game No. 38 Rogue 38 Adventurer 0 Explorer 0 Win Type - Total 1 Types 1/0/0/0/0/0/0/0/0 Lore% 47 Gallery% 60 Achievement% 47 Wizard Run 0 Options --------- Layout 1 ASCII 0 Keyboard 1 Movement Arrows Keybinds 0 Fullscreen 2 Font 24/Smallcaps Map View 50x35 Zoom Use 0% Tactical HUD 1 Map Filters NONE Filters NONE Steam 1 RUN: 807f8c62-499f-4cad-907e-91ff8282688b